bitfinex/quotes_SOLUSD_20240915
["timestamp","ask_amount","ask_price","bid_price","bid_amount"]
[1726361252307,7.37349,137.97,137.91,23.776884]
[1726361252603,7.37349,137.97,137.89,24.027864]
[1726361252797,7.37349,137.97,137.91,23.776884]
[1726361255920,7.2485,137.96,137.91,23.776884]
[1726361256624,7.2485,137.96,137.88,15.4181]
[1726361256798,7.2485,137.96,137.89,23.776884]
[1726361257004,7.2485,137.96,137.9,5.67436349]
[1726361257323,7.2485,137.96,137.89,23.776884]
[1726361257502,7.2485,137.96,137.9,5.67435427]
[1726361257702,7.2485,137.96,137.89,23.776884]
[1726361257912,7.249,137.95,137.9,5.67408799]
[1726361258102,7.249,137.95,137.89,23.776884]
[1726361258419,7.249,137.95,137.9,5.6747447]
[1726361258642,7.249,137.95,137.89,23.776884]
[1726361258919,7.249,137.95,137.9,5.67474357]
[1726361259120,7.249,137.95,137.89,23.776884]
[1726361259308,7.249,137.95,137.9,5.6746202]
[1726361259510,7.249,137.95,137.89,23.776884]
[1726361259717,7.249,137.95,137.9,5.6746202]
[1726361259927,7.249,137.95,137.89,23.776884]
[1726361260112,7.249,137.95,137.9,5.67415601]
[1726361260412,7.249,137.95,137.89,23.776884]
[1726361260599,7.249,137.95,137.9,5.67415093]
[1726361260800,7.249,137.95,137.89,23.776884]
[1726361261019,7.249,137.95,137.9,5.67415093]
[1726361261324,7.249,137.95,137.89,23.776884]
[1726361261522,7.249,137.95,137.9,5.67415206]
[1726361261700,7.249,137.95,137.89,23.776884]
[1726361261901,7.249,137.95,137.9,5.67423862]
[1726361262199,7.249,137.95,137.89,23.776884]
[1726361262519,7.249,137.95,137.9,5.67436726]
[1726361262711,7.249,137.95,137.89,23.776884]
[1726361262915,7.249,137.95,137.9,5.67423749]
[1726361263118,7.249,137.95,137.89,23.776884]
[1726361263301,7.249,137.95,137.9,5.67424276]
[1726361263501,7.249,137.95,137.89,23.776884]
[1726361263701,7.249,137.95,137.9,5.67424276]
[1726361263925,7.249,137.95,137.89,23.776884]
[1726361264110,7.249,137.95,137.9,5.67424276]
[1726361264419,7.249,137.95,137.91,5.67424276]
[1726361264609,7.249,137.95,137.89,23.776884]
[1726361264809,7.249,137.95,137.9,5.6742467]
[1726361265005,7.249,137.95,137.91,5.6742467]
[1726361265212,7.249,137.95,137.89,23.776884]
[1726361265425,7.249,137.95,137.9,5.67415218]
[1726361265729,7.249,137.95,137.91,5.67415218]
[1726361265932,7.249,137.95,137.89,23.776884]
[1726361266109,7.249,137.95,137.9,5.67427825]
[1726361266310,7.249,137.95,137.91,5.67427825]
[1726361266630,7.249,137.95,137.89,23.776884]
[1726361267529,7.2485,137.96,137.89,23.776884]
[1726361267925,7.249,137.95,137.89,23.776884]
[1726361271518,7.2495,137.94,137.88,15.4181]
[1726361278432,7.2495,137.94,137.87,23.776884]
[1726361281223,23.2825,137.95,137.87,23.776884]
[1726361298436,16.0335,137.95,137.87,23.776884]
[1726361301175,23.2825,137.95,137.87,23.776884]
[1726361303258,16.0335,137.95,137.87,23.776884]
[1726361303456,16.0335,137.95,137.88,0.12549]
[1726361303890,16.0335,137.95,137.87,23.776884]
[1726361307474,23.2825,137.95,137.87,23.776884]
[1726361310181,7.2497,137.94,137.87,23.776884]
[1726361315089,7.2497,137.94,137.88,4.00798667]
[1726361315293,7.2497,137.94,137.87,23.776884]
[1726361315492,7.2497,137.94,137.88,4.00811519]
[1726361315786,7.2497,137.94,137.87,23.776884]
[1726361315987,7.2497,137.94,137.88,4.00827161]
[1726361316189,7.2497,137.94,137.87,23.776884]
[1726361316394,7.2497,137.94,137.88,4.00813641]
[1726361316888,7.2497,137.94,137.87,23.776884]
[1726361318091,7.2497,137.94,137.88,4.00813934]
[1726361318290,7.2497,137.94,137.87,23.776884]
[1726361320971,0.12549,137.93,137.87,23.776884]
[1726361324177,23.2825,137.95,137.87,23.776884]
[1726361324392,0.12549,137.94,137.87,23.776884]
[1726361324912,16.0335,137.95,137.87,23.776884]
[1726361328610,23.2825,137.95,137.87,23.776884]
[1726361330016,0.0956838,137.96,137.9,0.25098]
[1726361330207,0.0956838,137.96,137.92,24.027864]
[1726361330812,0.0956838,137.96,137.92,0.25098]
[1726361336503,0.0956838,137.96,137.92,0.12549]
[1726361338212,0.0956838,137.96,137.92,1.7007885]
[1726361338491,0.0956838,137.96,137.93,23.776884]
[1726361339090,0.0956838,137.96,137.95,23.776884]
[1726361339293,0.0956838,137.96,137.95,24.027864]
[1726361339610,0.0956838,137.96,137.95,0.25098]
[1726361341217,0.0956838,137.96,137.94,23.776884]
[1726361355231,0.0956838,137.96,137.95,14.50315798]
[1726361355434,0.0956838,137.96,137.95,50.08629791]
[1726361355610,0.0956838,137.96,137.95,50.55519033]
[1726361356132,0.0956838,137.96,137.95,24.027864]
[1726361356319,0.0956838,137.96,137.95,39.60397282]
[1726361356515,0.0956838,137.96,137.95,39.72946282]
[1726361359014,0.0956838,137.96,137.95,38.40553198]
[1726361370336,0.0956838,137.96,137.95,24.153354]
[1726361370539,0.0956838,137.96,137.95,38.40553198]
[1726361378347,0.0956838,137.96,137.95,42.40792329]
[1726361386827,0.0956838,137.96,137.95,48.07821576]
[1726361387950,0.0956838,137.96,137.95,48.07987529]
[1726361388252,0.0956838,137.96,137.95,44.07700291]
[1726361388548,0.0956838,137.96,137.95,48.0802936]
[1726361389753,0.0956838,137.96,137.95,38.40553198]
[1726361389938,0.0956838,137.96,137.95,48.08029937]
[1726361391139,0.0956838,137.96,137.95,48.08077254]
[1726361398263,0.0956838,137.96,137.95,48.08121545]
[1726361398561,0.0956838,137.96,137.95,48.08185523]
[1726361399564,0.0956838,137.96,137.95,54.48784164]
[1726361400964,0.0956838,137.96,137.95,40.23566366]
[1726361401144,0.0956838,137.96,137.95,29.82574436]
[1726361401343,0.0956838,137.96,137.95,41.68500067]
[1726361401544,0.0956838,137.96,137.95,40.23573307]
[1726361404261,0.0956838,137.96,137.95,29.82604559]
[1726361404463,0.0956838,137.96,137.95,40.23684864]
[1726361407693,0.0956838,137.96,137.95,48.56535503]
[1726361407979,0.0956838,137.96,137.95,54.23804662]
[1726361408154,0.0956838,137.96,137.95,54.23793868]
[1726361408471,0.0956838,137.96,137.95,43.82713563]
[1726361408673,0.0956838,137.96,137.95,39.98555053]
[1726361408855,0.0956838,137.96,137.95,54.23772851]
[1726361409666,0.0956838,137.96,137.95,39.98555053]
[1726361409865,0.0956838,137.96,137.95,54.23772851]
[1726361410073,0.0956838,137.96,137.95,39.98555053]
[1726361410279,0.0956838,137.96,137.95,54.23772851]
[1726361411274,0.0956838,137.96,137.95,48.56514486]
[1726361411493,0.0956838,137.96,137.95,43.82666034]
[1726361411773,0.0956838,137.96,137.95,50.23264554]
[1726361411979,0.0956838,137.96,137.95,54.23638629]
[1726361414678,0.0956838,137.96,137.95,48.56427793]
[1726361414858,0.0956838,137.96,137.95,43.82611709]
[1726361415284,0.0956838,137.96,137.95,54.23484057]
[1726361416977,0.0956838,137.96,137.95,39.98266259]
[1726361417182,0.0956838,137.96,137.95,54.23484057]
[1726361421893,0.0956838,137.96,137.95,48.56327546]
[1726361422192,0.0956838,137.96,137.95,54.23358474]
[1726361425391,16.3716,138.04,137.95,54.23358474]
[1726361425392,14.225843,138.04,137.96,23.776884]
[1726361425894,14.225843,138.04,137.98,23.776884]
[1726361426089,14.225843,138.04,137.99,5.67214448]
[1726361426291,14.225843,138.04,137.96,23.776884]
[1726361426292,14.225843,138.04,138.0,5.67214448]
[1726361426486,14.225843,138.04,138.01,5.67214448]
[1726361426686,0.25098,138.04,137.97,6.40642194]
[1726361426990,0.25098,138.04,137.98,33.45327325]
[1726361427187,0.25098,138.04,137.99,9.67638925]
[1726361427503,0.25098,138.04,138.0,5.67242731]
[1726361427669,0.25098,138.04,138.01,5.67242731]
[1726361427870,0.25098,138.04,137.96,23.776884]
[1726361428091,0.25098,138.04,137.98,23.776884]
[1726361428283,0.25098,138.04,137.99,9.67658796]
[1726361428593,0.25098,138.04,138.0,5.67255053]
[1726361428797,0.25098,138.04,138.01,5.67255053]
[1726361429005,0.25098,138.04,137.96,23.776884]
[1726361429186,0.25098,138.04,137.98,23.776884]
[1726361429399,0.25098,138.04,137.99,5.67263117]
[1726361429593,0.25098,138.04,138.0,5.67263117]
[1726361429795,16.13628,138.04,137.98,23.776884]
[1726361430092,16.13628,138.04,137.99,4.00411142]
[1726361430405,16.13628,138.04,137.98,23.776884]
[1726361430905,16.13628,138.04,137.99,4.00404535]
[1726361431115,16.13628,138.04,137.98,23.776884]
[1726361431281,16.13628,138.04,137.99,4.00404624]
[1726361431482,16.13628,138.04,137.98,23.776884]
[1726361431709,16.13628,138.04,137.99,4.00404624]
[1726361432012,16.13628,138.04,137.98,23.776884]
[1726361432186,16.13628,138.04,137.99,4.00411445]
[1726361432385,16.13628,138.04,137.98,23.776884]
[1726361432810,16.13628,138.04,137.99,4.00411534]
[1726361433198,16.13628,138.04,137.98,23.776884]
[1726361433397,16.13628,138.04,137.99,4.00404242]
[1726361433585,2.89722469,138.11,137.98,23.776884]
[1726361433586,10.0,138.1,137.98,23.776884]
[1726361433785,10.0,138.1,137.99,4.00406342]
[1726361433786,44.153354,138.09,137.99,4.00406342]
[1726361434007,44.153354,138.09,137.98,24.0354432]
[1726361434299,44.153354,138.09,138.01,7.2458]
[1726361435385,7.2436,138.06,138.01,7.2458]
[1726361435586,0.25098,138.04,138.01,7.2458]
[1726361437707,24.9565,138.06,137.99,1.44923452]
[1726361438003,4.9565,138.06,137.99,1.44923452]
[1726361438187,4.9565,138.06,138.0,4.00265983]
[1726361438384,4.9565,138.06,137.99,1.44923452]
[1726361438385,4.9565,138.06,137.99,15.7014125]
[1726361438587,6.6234,138.07,138.0,23.776884]
[1726361438787,6.6234,138.07,138.01,1.44899612]
[1726361438990,0.12549,138.06,138.01,1.44899612]
[1726361439201,6.6234,138.07,138.01,1.44899612]
[1726361439387,6.6234,138.07,138.04,7.2442]
[1726361439708,4.9565,138.09,138.05,7.2436]
[1726361440015,24.9565,138.09,138.05,7.2436]
[1726361441192,24.9565,138.09,138.06,7.2431]
[1726361442518,24.9565,138.09,138.05,7.2436]
[1726361442994,24.9565,138.09,138.06,7.243]
[1726361444316,24.9565,138.09,138.02,23.776884]
[1726361445201,4.9565,138.09,138.02,23.776884]
[1726361445401,4.9565,138.09,138.06,7.2431]
[1726361446519,4.9565,138.09,138.06,25.3507]
[1726361448721,13.98999,138.1,138.06,25.3507]
[1726361449221,6.74889,138.1,138.06,25.3507]
[1726361450020,20.12549,138.1,138.07,7.2425]
[1726361450320,20.0,138.1,138.07,7.2425]
[1726361450507,20.3289515,138.11,138.07,7.2425]
[1726361450710,20.3289515,138.11,138.04,23.776884]
[1726361450914,20.3289515,138.11,138.08,7.2416]
[1726361451508,20.3289515,138.11,138.03,15.8472]
[1726361451712,0.12549,138.09,138.03,15.8472]
[1726361451907,0.25098,138.09,138.03,15.8472]
[1726361453330,0.25098,138.09,138.05,7.2434]
[1726361454330,0.25098,138.09,138.05,25.3521]
[1726361454629,27.3185715,138.11,138.06,7.243]
[1726361456625,7.2411,138.1,138.06,7.243]
[1726361456809,7.49208,138.1,138.06,7.243]
[1726361460611,0.25098,138.1,138.06,7.243]
[1726361469320,0.25098,138.1,138.05,18.1087]
[1726361470233,27.3186715,138.11,138.05,17.6087]
[1726361470918,7.61767,138.1,138.06,7.2431]
[1726361471122,7.2422,138.08,138.03,15.8472]
[1726361471323,26.3617,138.09,138.0,15.3417]
[1726361471531,0.12549,138.07,138.0,15.3417]
[1726361472115,0.25098,138.08,138.0,15.3417]
[1726361472317,0.25098,138.08,138.04,7.244]
[1726361472539,0.25098,138.08,138.0,15.3417]
[1726361472540,0.25098,138.08,138.05,7.2435]
[1726361475056,0.25098,138.08,138.04,7.2442]
[1726361475418,7.49308,138.08,138.03,7.2447]
[1726361478543,0.12549,138.07,138.03,7.2447]
[1726361480956,7.36829,138.07,138.03,7.2447]
[1726361481159,0.25098,138.06,138.03,7.2447]
[1726361484345,0.12549,138.08,138.04,7.2442]
[1726361484555,0.12549,138.08,138.01,23.776884]
[1726361485257,0.12549,138.08,138.05,7.2436]
[1726361486776,0.12549,138.08,138.04,7.2442]
[1726361487270,0.25098,138.07,138.04,7.2442]
[1726361487451,0.25098,138.07,138.03,7.2446]
[1726361491480,7.2436,138.06,138.02,7.2452]
[1726361491649,7.49468,138.05,137.98,0.2346804]
[1726361491850,7.49468,138.05,137.99,5.66938855]
[1726361492156,7.49468,138.05,138.0,5.66938855]
[1726361492368,7.2443,138.04,137.99,7.2463]
[1726361492564,7.49478,138.05,138.0,12.91628597]
[1726361492768,7.49478,138.05,138.0,7.2463]
[1726361492968,0.12549,138.04,138.0,7.2463]
[1726361493373,7.36979,138.04,137.99,7.2468]
[1726361494566,7.49578,138.03,137.98,0.2346804]
[1726361495781,7.49578,138.03,137.98,7.4819804]
[1726361496282,7.49578,138.03,137.98,7.4029487]
[1726361496584,0.12549,138.02,137.98,7.4029487]
[1726361496755,0.12549,138.01,137.98,0.1556487]
[1726361499363,0.12549,138.01,137.98,7.4029487]
[1726361499782,0.25098,138.01,137.98,7.4029487]
[1726361501172,0.25098,138.01,137.98,0.1556487]
[1726361501385,0.25098,137.99,137.98,0.1556487]
[1726361502769,0.37647,137.99,137.98,0.1556487]
[1726361503394,0.25098,137.99,137.98,0.1556487]
[1726361506976,0.37647,137.99,137.98,0.1556487]
[1726361517712,0.25098,137.99,137.98,0.1556487]
[1726361518004,27.2458,138.02,137.98,7.4028487]
[1726361518202,0.25098,138.01,137.98,7.4028487]
[1726361520906,0.25098,138.01,137.98,0.1556487]
[1726361521109,0.25098,138.0,137.98,0.1556487]
[1726361529009,0.12549,137.99,137.98,0.1556487]
[1726361529217,0.25098,137.99,137.98,0.1556487]
[1726361531318,0.37647,137.99,137.98,0.1556487]
[1726361533309,7.62337,137.99,137.98,0.1556487]
[1726361534004,27.62337,137.99,137.98,0.1556487]
[1726361534200,27.62337,137.99,137.96,0.2584899]
[1726361534523,0.12549,137.97,137.96,0.2584899]
[1726361534697,0.25098,137.97,137.96,0.2584899]
[1726361534898,0.37647,137.97,137.96,0.2584899]
[1726361544911,0.25098,137.97,137.96,0.2584899]
[1726361551043,27.49888,137.97,137.96,0.2584899]
[1726361551214,27.62437,137.97,137.96,0.2584899]
[1726361573656,20.37647,137.97,137.96,0.2584899]
[1726361577760,27.62437,137.97,137.96,0.2584899]
[1726361584560,20.37647,137.97,137.96,0.2584899]
[1726361584761,20.25098,137.97,137.96,0.2584899]
[1726361585871,7.2468,138.0,137.96,0.2584899]
[1726361586048,20.0,137.99,137.96,0.2584899]
[1726361588671,0.25098,137.98,137.96,0.2584899]
[1726361590254,7.49848,137.98,137.96,0.2584899]
[1726361591993,7.2469,137.99,137.96,0.2584899]
[1726361595197,0.25098,137.98,137.96,0.2584899]
[1726361597994,7.49848,137.98,137.96,0.2584899]
[1726361599397,0.12549,137.97,137.96,0.2584899]
[1726361611206,0.25098,137.98,137.96,0.2584899]
[1726361640524,0.25098,137.98,137.97,5.67637582]
[1726361640719,0.37647,137.98,137.97,5.67637582]
[1726361641442,0.37647,137.98,137.96,0.2584899]
[1726361643238,0.37647,137.98,137.97,5.67700999]
[1726361645933,0.25098,137.98,137.97,5.67700999]
[1726361647637,27.49678,138.02,137.97,5.67700999]
[1726361647842,20.25098,138.0,137.96,7.5067899]
[1726361648150,20.25098,138.0,137.97,5.67686304]
[1726361648325,20.25098,138.0,137.96,7.5067899]
[1726361648527,20.25098,138.0,137.97,5.67698994]
[1726361648739,20.25098,138.0,137.96,7.5067899]
[1726361648926,20.25098,138.0,137.97,5.6766673]
[1726361649117,20.25098,138.0,137.96,7.5067899]
[1726361649322,20.25098,138.0,137.97,5.6766673]
[1726361649533,20.25098,138.0,137.96,7.5067899]
[1726361654654,7.49738,138.0,137.96,7.5067899]
[1726361660043,7.49738,138.0,137.96,0.2584899]
[1726361670149,0.25098,138.0,137.96,0.2584899]
[1726361670341,7.2469,137.99,137.96,0.2584899]
[1726361670851,0.37647,137.98,137.96,0.2584899]
[1726361671742,7.62397,137.98,137.96,0.2584899]
[1726361672852,7.49888,137.97,137.96,0.2584899]
[1726361673052,7.62437,137.97,137.96,0.2584899]
[1726361679039,7.62437,137.97,137.93,4.00624582]
[1726361679040,0.25098,137.94,137.93,4.00624582]
[1726361679259,7.50048,137.94,137.93,4.00624582]
[1726361679461,7.62597,137.94,137.93,8.0126777]
[1726361680257,7.62597,137.94,137.93,4.00624582]
[1726361681357,7.62597,137.94,137.92,0.2584899]
[1726361681538,0.12549,137.93,137.92,0.2584899]
[1726361682749,7.62647,137.93,137.92,0.2584899]
[1726361686173,51.403354,137.93,137.92,0.2584899]
[1726361693954,27.62647,137.93,137.92,0.2584899]
[1726361699783,0.37647,137.93,137.92,0.2584899]
[1726361715502,7.62647,137.93,137.92,0.2584899]
[1726361715705,0.37647,137.93,137.92,0.2584899]
[1726361717892,7.62647,137.93,137.92,0.2584899]
[1726361718700,31.403354,137.93,137.92,0.2584899]
[1726361719496,51.403354,137.93,137.92,0.2584899]
[1726361720291,51.278664,137.92,137.88,15.9709899]
[1726361720596,0.12549,137.91,137.88,15.9709899]
[1726361720995,20.25098,137.9,137.88,15.9709899]
[1726361721190,0.12549,137.89,137.88,0.2584899]
[1726361721898,27.62857,137.89,137.88,0.2584899]
[1726361722201,51.405454,137.89,137.88,0.2584899]
[1726361733895,0.25098,137.86,137.84,15.9697]
[1726361734213,0.12549,137.85,137.84,15.9697]
[1726361735514,20.37647,137.85,137.84,15.9697]
[1726361735809,0.25098,137.84,137.83,0.2584899]
[1726361736015,0.37647,137.84,137.83,0.2584899]
[1726361737019,51.408054,137.84,137.83,0.2584899]
[1726361743723,51.408054,137.84,137.79,0.2584899]
[1726361743724,27.50778,137.8,137.79,0.2584899]
[1726361743928,51.410154,137.8,137.79,0.2584899]
[1726361746920,0.25098,137.77,137.75,0.2584899]
[1726361747220,0.37647,137.76,137.75,0.2584899]
[1726361749515,7.63547,137.76,137.75,0.2584899]
[1726361749829,24.153354,137.76,137.75,0.2584899]
[1726361750026,51.412354,137.76,137.75,0.2584899]
[1726361755531,44.153354,137.76,137.75,0.2584899]
[1726361755710,20.0,137.76,137.75,0.2584899]
[1726361757217,20.12549,137.76,137.75,0.2584899]
[1726361757724,20.37647,137.76,137.75,0.2584899]
[1726361763421,0.37647,137.76,137.75,0.2584899]
[1726361763913,0.25098,137.76,137.75,7.5179899]
[1726361764116,0.25098,137.76,137.75,0.2584899]
[1726361764648,0.25098,137.76,137.75,23.8133899]
[1726361765018,20.0,137.78,137.75,23.8133899]
[1726361765227,27.2564,137.81,137.76,7.2589]
[1726361766013,50.0,137.83,137.75,34.7017899]
[1726361766014,27.2558,137.82,137.77,7.2583]
[1726361766813,27.2558,137.82,137.78,7.2579]
[1726361767234,27.2558,137.82,137.77,7.2583]
[1726361767614,7.2554,137.83,137.77,7.2583]
[1726361768015,20.0,137.82,137.77,7.2583]
[1726361768626,0.25098,137.81,137.77,7.2583]
[1726361768936,0.25098,137.81,137.78,7.2577]
[1726361769324,0.25098,137.8,137.78,7.2577]
[1726361773345,0.12549,137.8,137.78,7.2577]
[1726361775432,0.12549,137.8,137.79,7.2574]
[1726361775642,0.25098,137.82,137.79,7.2574]
[1726361778043,0.12549,137.81,137.79,7.2574]
[1726361778429,44.027864,137.83,137.8,15.6847]
[1726361778621,0.12549,137.82,137.8,15.6847]
[1726361784028,0.25098,137.81,137.8,15.6847]
[1726361785349,0.37647,137.81,137.8,15.6847]
[1726361790360,0.37647,137.81,137.78,7.2579]
[1726361798269,0.37647,137.81,137.79,7.2573]
[1726361800973,0.25098,137.82,137.79,7.2573]
[1726361801458,20.0,137.85,137.81,7.2563]
[1726361802777,0.37647,137.84,137.81,7.2563]
[1726361803150,0.37647,137.84,137.82,7.2557]
[1726361803552,11.068,137.88,137.83,7.2553]
[1726361803553,27.2531,137.88,137.83,7.2553]
[1726361805659,0.25098,137.87,137.83,7.2553]
[1726361805961,0.25098,137.85,137.83,7.2553]
[1726361811285,0.25098,137.85,137.81,34.1207]
[1726361811286,0.25098,137.85,137.82,7.2558]
[1726361817094,0.25098,137.85,137.81,41.3769]
[1726361817790,31.282164,137.85,137.81,34.1207]
[1726361818087,0.12549,137.83,137.81,34.1207]
[1726361818291,0.25098,137.83,137.81,18.1399]
[1726361859535,0.25098,137.83,137.81,25.396]
[1726361859706,20.0,137.86,137.81,18.1399]
[1726361860936,0.37647,137.85,137.81,18.1399]
[1726361861312,0.37647,137.85,137.82,7.2558]
[1726361866244,20.37647,137.85,137.82,7.2558]
[1726361877228,0.37647,137.85,137.83,7.2552]
[1726361878544,0.37647,137.85,137.82,22.457]
[1726361878850,20.37647,137.85,137.82,22.457]
[1726361879358,0.37647,137.85,137.82,22.457]
[1726361895952,0.37647,137.85,137.82,15.2013]
[1726361899789,0.37647,137.85,137.81,25.3961]
[1726361900266,7.63087,137.85,137.82,5.69044219]
[1726361900573,31.407754,137.85,137.81,18.1399]
[1726361901165,31.407754,137.85,137.82,5.69053965]
[1726361901370,31.407754,137.85,137.81,18.1399]
[1726361901573,31.407754,137.85,137.82,5.69037164]
[1726361901870,31.407754,137.85,137.81,18.1399]
[1726361904354,31.407754,137.85,137.82,5.69101636]
[1726361904557,31.407754,137.85,137.81,18.1399]
[1726361904755,31.407754,137.85,137.82,5.69100819]
[1726361904963,31.407754,137.85,137.81,18.1399]
[1726361905474,31.407754,137.85,137.82,5.6909473]
[1726361905677,31.407754,137.85,137.81,18.1399]
[1726361905877,31.407754,137.85,137.82,5.69091793]
[1726361906063,31.407754,137.85,137.81,18.1399]
[1726361906267,31.407754,137.85,137.82,5.69091793]
[1726361906570,31.407754,137.85,137.81,18.1399]
[1726361906759,31.407754,137.85,137.82,5.69092388]
[1726361906962,31.407754,137.85,137.81,18.1399]
[1726361907162,31.407754,137.85,137.82,5.69092388]
[1726361907363,31.407754,137.85,137.81,18.1399]
[1726361907671,31.407754,137.85,137.82,5.69092388]
[1726361907877,31.407754,137.85,137.81,25.3961]
[1726361908176,31.407754,137.85,137.82,5.69092388]
[1726361908476,31.407754,137.85,137.81,25.3961]
[1726361908674,20.37647,137.85,137.81,25.3961]
[1726361914984,0.37647,137.85,137.81,25.3961]
[1726361915476,20.37647,137.85,137.81,25.3961]
[1726361928686,20.0,137.84,137.81,18.1399]
[1726361928888,0.37647,137.83,137.81,18.1399]
[1726361941288,0.37647,137.83,137.79,7.2573]
[1726361941509,0.37647,137.83,137.8,5.69461681]
[1726361941797,0.37647,137.83,137.79,7.2573]
[1726361942008,0.37647,137.83,137.8,5.69480009]
[1726361942183,0.37647,137.83,137.79,7.2573]
[1726361942384,0.37647,137.83,137.8,5.69478622]
[1726361942601,0.37647,137.83,137.79,7.2573]
[1726361950716,0.37647,137.83,137.8,7.2568]
[1726361972623,20.37647,137.83,137.79,7.2572]
[1726361976731,0.25098,137.82,137.79,7.2572]
[1726361986438,0.25098,137.82,137.8,7.2568]
[1726361987018,0.12549,137.82,137.81,7.2563]
[1726361993149,0.25098,137.83,137.8,25.3982]
[1726361996849,0.25098,137.83,137.8,18.1415]
[1726361999847,0.12549,137.82,137.8,18.1415]
[1726362000038,0.12549,137.81,137.8,18.1415]
[1726362000355,0.25098,137.81,137.8,18.1415]
[1726362001036,20.0,137.85,137.8,19.59284208]
[1726362001230,0.12549,137.84,137.81,7.2562]
[1726362001559,20.0,137.85,137.81,7.2562]
[1726362002751,0.25098,137.84,137.81,7.2562]
[1726362003646,0.25098,137.84,137.82,7.2558]
[1726362003857,23.16002989,137.89,137.82,18.1388]
[1726362004053,15.60285915,137.89,137.83,1.45078689]
[1726362004464,7.5101899,137.9,137.85,7.2542]
[1726362005358,7.2522,137.89,137.85,7.2542]
[1726362005559,0.37647,137.88,137.85,7.2542]
[1726362009338,0.25098,137.88,137.86,7.2536]
[1726362009542,0.25098,137.89,137.86,7.2536]
[1726362009766,0.25098,137.89,137.87,7.2531]
[1726362010762,0.2584899,137.9,137.87,7.2531]
[1726362010955,0.2584899,137.9,137.86,41.1584]
[1726362012144,0.2584899,137.9,137.87,7.2531]
[1726362012368,0.12549,137.89,137.87,7.2531]
[1726362018074,0.12549,137.89,137.86,41.1586]
[1726362019570,0.25098,137.89,137.86,41.1586]
[1726362019753,24.027864,137.89,137.86,18.1332]
[1726362020068,0.25098,137.87,137.83,7.2548]
[1726362020449,0.25098,137.87,137.83,25.3927]
[1726362024870,0.25098,137.85,137.83,25.3927]
[1726362026062,0.2584899,137.9,137.83,18.1379]
[1726362027384,0.37647,137.89,137.85,7.2541]
[1726362027679,20.37647,137.89,137.85,7.2541]
[1726362030552,20.0,137.89,137.82,30.00537798]
[1726362030868,20.2584899,137.9,137.86,7.2534]
[1726362032258,0.25098,137.89,137.86,7.2534]
[1726362033057,0.25098,137.89,137.85,25.3889]
[1726362035881,0.12549,137.89,137.87,7.2528]
[1726362037088,0.12549,137.89,137.86,7.2536]
[1726362038163,0.12549,137.89,137.87,7.2531]
[1726362038389,20.2584899,137.9,137.87,7.2531]
[1726362040263,0.2584899,137.9,137.87,7.2531]
[1726362040992,0.2584899,137.9,137.88,8.70289473]
[1726362041294,0.2584899,137.9,137.88,7.2525]
[1726362045682,0.2584899,137.9,137.89,7.2521]
[1726362047891,0.2584899,137.9,137.88,7.2526]
[1726362049499,0.2584899,137.9,137.87,25.3853]
[1726362052097,0.2584899,137.9,137.88,7.2525]
[1726362058706,0.2584899,137.9,137.87,25.3853]
[1726362067689,0.2584899,137.9,137.87,18.1322]
[1726362068496,0.12549,137.89,137.87,18.1322]
[1726362069297,0.25098,137.89,137.85,7.2541]
[1726362069499,7.50328,137.89,137.85,7.2541]
[1726362069804,7.50328,137.89,137.84,7.2547]
[1726362071015,7.50328,137.89,137.84,25.3915]
[1726362073005,0.25098,137.88,137.84,25.3915]
[1726362073206,0.12549,137.87,137.84,25.3915]
[1726362073408,0.25098,137.87,137.84,25.3915]
[1726362074631,0.12549,137.88,137.84,25.3915]
[1726362074632,0.25098,137.88,137.84,25.3915]
[1726362074844,0.25098,137.89,137.85,7.2541]
[1726362077240,0.25098,137.89,137.84,19.58746489]
[1726362077241,0.25098,137.87,137.84,18.1368]
[1726362083525,0.25098,137.85,137.8,7.2568]